fUST/lending_fUST_20251206
["ID","MTS","AMOUNT","RATE_DAILY","PERIOD"]
[396435407,1764969040490,-500.0,0.00013438,2]
[396435408,1764969040499,-151.0,0.000135,2]
[396435409,1764969040509,-1680.0,0.00013526,2]
[396435410,1764969040518,-420.0,0.00013529,2]
[396435411,1764969040529,-500.0,0.00013546,2]
[396435412,1764969040540,-500.0,0.00013546,2]
[396435413,1764969040549,-304.57757377,0.00013546,2]
[396435414,1764969040559,-546.0,0.00013547,2]
[396435415,1764969040568,-500.0,0.00013547,2]
[396435416,1764969040579,-500.0,0.00013547,2]
[396435417,1764969040588,-500.0,0.00013547,2]
[396435418,1764969040597,-500.0,0.00013547,2]
[396435419,1764969040608,-500.0,0.00013547,2]
[396435420,1764969040617,-1680.0,0.00013561,2]
[396435421,1764969040627,-500.0,0.00013683,2]
[396435422,1764969040636,-500.0,0.00013683,2]
[396435423,1764969040646,-546.0,0.00013684,2]
[396435424,1764969040656,-500.0,0.00013684,2]
[396435425,1764969040666,-500.0,0.00013684,2]
[396435426,1764969040676,-500.0,0.00013684,2]
[396435427,1764969040685,-500.0,0.00013684,2]
[396435428,1764969040695,-500.0,0.00013684,2]
[396435429,1764969040704,-633.47260363,0.00013698,2]
[396435430,1764969040713,-942.43,0.00013698,2]
[396435431,1764969040722,-942.43,0.00013698,2]
[396435433,1764969040732,-942.43,0.00013698,2]
[396435435,1764969040742,-942.43,0.00013698,2]
[396435437,1764969040752,-942.43,0.00013698,2]
[396435439,1764969040761,-942.43,0.00013698,2]
[396435441,1764969040771,-500.0,0.00013698,2]
[396435443,1764969040781,-500.0,0.00013698,2]
[396435445,1764969040791,-500.0,0.00013698,2]
[396435447,1764969040800,-500.0,0.00013698,2]
[396435449,1764969040810,-425.63254702,0.00013698,2]
[396435451,1764969040820,-13117.3453261,0.00013699,2]
[396435453,1764969040829,-662.773011,0.00013699,2]
[396435455,1764969040838,-2648.937832,0.00013699,2]
[396435457,1764969040847,-2648.937832,0.00013699,2]
[396435459,1764969040857,-2648.937832,0.00013699,2]
[396435461,1764969040866,-2648.937832,0.00013699,2]
[396435463,1764969040876,-2648.937832,0.00013699,2]
[396435464,1764969040885,-2648.937832,0.00013699,2]
[396435465,1764969040895,-2648.937832,0.00013699,2]
[396435467,1764969040904,-2648.937832,0.00013699,2]
[396435469,1764969040913,-2648.937832,0.00013699,2]
[396435471,1764969040925,-2648.937832,0.00013699,2]
[396435473,1764969040935,-2648.937832,0.00013699,2]
[396435475,1764969040945,-2648.937832,0.00013699,2]
[396435477,1764969040954,-2648.937832,0.00013699,2]
[396435479,1764969040963,-2648.937832,0.00013699,2]
[396435481,1764969040972,-2648.937832,0.00013699,2]
[396435483,1764969040982,-2648.937832,0.00013699,2]
[396435485,1764969040992,-2648.937832,0.00013699,2]
[396435487,1764969041001,-2648.937832,0.00013699,2]
[396435489,1764969041010,-2648.937832,0.00013699,2]
[396435491,1764969041020,-2648.937828,0.00013699,2]
[396435493,1764969041029,-500.0,0.00013699,2]
[396435495,1764969041038,-500.0,0.00013699,2]
[396435497,1764969041047,-500.0,0.00013699,2]
[396435499,1764969041057,-500.82588488,0.00013699,2]
[396435501,1764969041066,-500.0,0.00013699,2]
[396435503,1764969041075,-617.40295225,0.00013699,2]
[396435505,1764969041085,-452.2446066,0.00013699,2]
[396435507,1764969041094,-500.0,0.00013699,2]
[396435509,1764969041104,-500.0,0.00013699,2]
[396435511,1764969041113,-500.0,0.00013699,2]
[396435513,1764969041122,-500.0,0.00013699,2]
[396435515,1764969041131,-500.0,0.00013699,2]
[396435517,1764969041141,-500.0,0.00013699,2]
[396435519,1764969041151,-500.0,0.00013699,2]
[396435521,1764969041161,-500.0,0.00013699,2]
[396435523,1764969041172,-500.0,0.00013699,2]
[396435525,1764969041181,-500.0,0.00013699,2]
[396435545,1764969041340,-164.54754077,0.00013699,2]
[396435548,1764969041383,-500.0,0.00013699,2]
[396435550,1764969041393,-500.0,0.00013699,2]
[396435552,1764969041403,-500.0,0.00013699,2]
[396435554,1764969041419,-500.0,0.00013699,2]
[396435556,1764969041428,-500.0,0.00013699,2]
[396435558,1764969041437,-500.0,0.00013699,2]
[396435560,1764969041447,-327.51905119,0.00013699,2]
[396435562,1764969041456,-336.31785842,0.00013699,2]
[396435564,1764969041466,-157.84185627,0.00013699,2]
[396435566,1764969041475,-500.0,0.00013699,2]
[396435568,1764969041484,-501.1751398,0.00013699,2]
[396435570,1764969041494,-500.0,0.00013699,2]
[396435572,1764969041503,-500.0,0.00013699,2]
[396435574,1764969041512,-500.0,0.00013699,2]
[396435576,1764969041522,-159.36913681,0.00013699,2]
[396435578,1764969041535,-158.3812177,0.00013699,2]
[396435580,1764969041544,-500.0,0.00013699,2]
[396435582,1764969041554,-160.62564763,0.00013699,2]
[396435584,1764969041562,-500.0,0.00013699,2]
[396435586,1764969041573,-278.48655021,0.00013699,2]
[396435588,1764969041583,-500.0,0.00013699,2]
[396435590,1764969041592,-500.0,0.00013699,2]
[396435592,1764969041602,-160.1817478,0.00013699,2]
[396435594,1764969041613,-160.18312943,0.00013699,2]
[396435596,1764969041622,-500.0,0.00013699,2]
[396435598,1764969041632,-500.0,0.00013699,2]
[396435600,1764969041640,-500.0,0.00013699,2]
[396435602,1764969041649,-500.0,0.00013699,2]
[396435604,1764969041659,-500.0,0.00013699,2]
[396435606,1764969041668,-500.0,0.00013699,2]
[396435608,1764969041677,-500.0,0.00013699,2]
[396435610,1764969041686,-500.0,0.00013699,2]
[396435612,1764969041696,-500.0,0.00013699,2]
[396435614,1764969041705,-184.13416818,0.00013699,2]
[396435616,1764969041714,-500.0,0.00013699,2]
[396435617,1764969041723,-500.0,0.00013699,2]
[396435619,1764969041733,-500.0,0.00013699,2]
[396435621,1764969041744,-512.90448898,0.00013699,2]
[396435623,1764969041755,-500.0,0.00013699,2]
[396435625,1764969041766,-500.0,0.00013699,2]
[396435627,1764969041775,-500.0,0.00013699,2]
[396435629,1764969041784,-500.0,0.00013699,2]
[396435631,1764969041794,-177.55427455,0.00013699,2]
[396435633,1764969041803,-533.25439506,0.00013699,2]
[396435635,1764969041812,-500.0,0.00013699,2]
[396435637,1764969041822,-163.17482835,0.00013699,2]
[396435639,1764969041832,-500.0,0.00013699,2]
[396435641,1764969041841,-500.0,0.00013699,2]
[396435643,1764969041850,-517.26582461,0.00013699,2]
[396435645,1764969041859,-500.0,0.00013699,2]
[396435647,1764969041868,-500.0,0.00013699,2]
[396435649,1764969041877,-500.0,0.00013699,2]
[396435651,1764969041886,-500.0,0.00013699,2]
[396435653,1764969041895,-500.0,0.00013699,2]
[396435655,1764969041904,-151.0,0.000137,2]
[396435657,1764969041914,-500.0,0.00013712,2]
[396435659,1764969041923,-4159.86150378,0.00013786,2]
[396435661,1764969041932,-206.75987525,0.00013789,2]
[396435663,1764969041942,-500.0,0.0001382,2]
[396435665,1764969041951,-500.0,0.0001382,2]
[396435667,1764969041961,-942.43,0.0001382,2]
[396435669,1764969041971,-1000.0,0.00013821,2]
[396435671,1764969041981,-230.99079812,0.00013821,2]
[396435672,1764969041990,-1000.0,0.00013821,2]
[396435673,1764969041999,-306.97952348,0.00013821,2]
[396435674,1764969042008,-481.81960731,0.00013821,2]
[396435675,1764969042017,-1000.0,0.00013821,2]
[396435676,1764969042026,-407.32744324,0.00013821,2]
[396435677,1764969042035,-1148.39926971,0.00013821,2]
[396435678,1764969042044,-1000.0,0.00013821,2]
[396435679,1764969042054,-1000.0,0.00013821,2]
[396435680,1764969042063,-1001.40254194,0.00013821,2]
[396435681,1764969042072,-1000.82057383,0.00013821,2]
[396435682,1764969042082,-1000.0,0.00013821,2]
[396435683,1764969042096,-1000.0,0.00013821,2]
[396435684,1764969042105,-1000.0,0.00013821,2]
[396435685,1764969042114,-1000.0,0.00013821,2]
[396435686,1764969042123,-509.57781534,0.00013821,2]
[396435687,1764969042132,-1000.0,0.00013821,2]
[396435688,1764969042142,-1115.55041857,0.00013821,2]
[396435689,1764969042151,-1000.0,0.00013821,2]
[396435690,1764969042160,-1000.0,0.00013821,2]
[396435691,1764969042169,-1000.0,0.00013821,2]
[396435692,1764969042178,-697.47342981,0.00013821,2]
[396435693,1764969042188,-1000.0,0.00013821,2]
[396435694,1764969042197,-601.21841851,0.00013821,2]
[396435695,1764969042206,-1000.0,0.00013821,2]
[396435696,1764969042215,-1000.0,0.00013821,2]
[396435697,1764969042223,-393.15338692,0.00013821,2]
[396435698,1764969042232,-1000.0,0.00013821,2]
[396435699,1764969042241,-1000.0,0.00013821,2]
[396435700,1764969042251,-1000.0,0.00013821,2]
[396435701,1764969042259,-1000.0,0.00013821,2]
[396435702,1764969042269,-1000.0,0.00013821,2]
[396435703,1764969042278,-1000.0,0.00013821,2]
[396435704,1764969042287,-232.05874991,0.00013821,2]
[396435705,1764969042295,-1000.0,0.00013821,2]
[396435706,1764969042304,-1000.0,0.00013821,2]
[396435707,1764969042313,-1000.0,0.00013821,2]
[396435708,1764969042322,-1000.0,0.00013821,2]
[396435709,1764969042331,-1000.59246099,0.00013821,2]
[396435710,1764969042340,-1000.0,0.00013821,2]
[396435711,1764969042349,-1000.0,0.00013821,2]
[396435712,1764969042358,-500.65945752,0.00013821,2]
[396435713,1764969042367,-1000.0,0.00013821,2]
[396435714,1764969042376,-1000.0,0.00013821,2]
[396435715,1764969042386,-546.0,0.00013821,2]
[396435717,1764969042395,-354.43366673,0.00013821,2]
[396435718,1764969042404,-500.0,0.00013821,2]
[396435719,1764969042414,-500.0,0.00013821,2]
[396435720,1764969042423,-500.0,0.00013821,2]
[396435722,1764969042433,-500.0,0.00013821,2]
[396435724,1764969042447,-875.92529489,0.00013953,2]
[396435726,1764969042456,-500.0,0.00013957,2]
[396435728,1764969042466,-494.1393581,0.00013957,2]
[396435730,1764969042477,-546.0,0.00013958,2]
[396435732,1764969042486,-392.308308,0.00013958,2]
[396435734,1764969042496,-500.0,0.00013958,2]
[396435736,1764969042506,-500.0,0.00013958,2]
[396435738,1764969042515,-500.0,0.00013958,2]
[396435740,1764969042525,-163.03816175,0.00013973,2]
[396435742,1764969042542,-500.0,0.00013986,2]
[396435744,1764969042552,-151.0,0.00014,2]
[396435746,1764969042562,-500.0,0.00014094,2]
[396435748,1764969042572,-546.0,0.00014095,2]
[396435750,1764969042582,-500.0,0.00014095,2]
[396435752,1764969042591,-500.0,0.00014095,2]
[396435754,1764969042601,-500.0,0.00014095,2]
[396435756,1764969042611,-720.0,0.00014107,2]
[396435758,1764969042619,-151.0,0.000142,2]
[396435760,1764969042629,-546.0,0.00014232,2]
[396435762,1764969042638,-500.0,0.00014232,2]
[396435764,1764969042647,-500.0,0.00014232,2]
[396435766,1764969042656,-500.0,0.00014232,2]
[396435768,1764969042665,-250.0,0.00014244,3]
[396435770,1764969042675,-942.43,0.00014246,2]
[396435772,1764969042685,-1000.0,0.00014247,2]
[396435774,1764969042694,-1000.0,0.00014247,2]
[396435776,1764969042703,-585.64786891,0.00014247,2]
[396435778,1764969042712,-1000.0,0.00014247,2]
[396435780,1764969042722,-361.97619538,0.00014247,2]
[396435782,1764969042731,-647.19827791,0.00014247,2]
[396435784,1764969042747,-1000.0,0.00014247,2]
[396435786,1764969042763,-1000.0,0.00014247,2]
[396435788,1764969042773,-1000.0,0.00014247,2]
[396435790,1764969042783,-1000.0,0.00014247,2]
[396435792,1764969042793,-1000.0,0.00014247,2]
[396435794,1764969042803,-1000.0,0.00014247,2]
[396435796,1764969042815,-1000.0,0.00014247,2]
[396435798,1764969042825,-1000.0,0.00014247,2]
[396435800,1764969042835,-1000.0,0.00014247,2]
[396435802,1764969042844,-1000.0,0.00014247,2]
[396435804,1764969042853,-1000.0,0.00014247,2]
[396435806,1764969042862,-1000.0,0.00014247,2]
[396435808,1764969042872,-1000.0,0.00014247,2]
[396435810,1764969042882,-1000.83802571,0.00014247,2]
[396435813,1764969042891,-1000.0,0.00014247,2]
[396435816,1764969042901,-987.47311358,0.00014247,2]
[396435818,1764969042910,-1000.0,0.00014247,2]
[396435820,1764969042920,-1001.95611718,0.00014247,2]
[396435822,1764969042929,-1000.0,0.00014247,2]
[396435824,1764969042940,-1000.0,0.00014247,2]
[396435826,1764969042949,-208.54326866,0.00014247,2]
[396435828,1764969042958,-945.06160533,0.00014247,2]
[396435830,1764969042968,-1000.0,0.00014247,2]
[396435832,1764969042977,-1000.0,0.00014247,2]
[396435834,1764969042986,-1000.0,0.00014247,2]
[396435836,1764969042995,-1000.0,0.00014247,2]
[396435839,1764969043004,-500.0,0.00014247,2]
[396435841,1764969043013,-670.27764259,0.00014247,2]
[396435843,1764969043023,-1000.0,0.00014247,2]
[396435845,1764969043032,-764.10902541,0.00014247,2]
[396435847,1764969043042,-1095.44050139,0.00014247,2]
[396435849,1764969043051,-1000.0,0.00014247,2]
[396435851,1764969043060,-1099.14945885,0.00014247,2]
[396435853,1764969043069,-501.57227729,0.00014247,2]
[396435855,1764969043078,-1000.0,0.00014247,2]
[396435857,1764969043087,-1000.0,0.00014247,2]
[396435859,1764969043097,-221.70197977,0.00014247,2]
[396435861,1764969043106,-1000.0,0.00014247,2]
[396435863,1764969043115,-960.36381463,0.00014247,2]
[396435865,1764969043124,-1000.0,0.00014247,2]
[396435867,1764969043133,-1000.0,0.00014247,2]
[396435869,1764969043142,-1000.0,0.00014247,2]
[396435871,1764969043152,-1000.0,0.00014247,2]
[396435873,1764969043161,-815.42169082,0.00014247,2]
[396435875,1764969043171,-936.37619307,0.00014247,2]
[396435877,1764969043180,-500.0,0.0001426,2]
[396435879,1764969043189,-942.43,0.00014368,2]
[396435881,1764969043198,-942.43,0.00014368,2]
[396435883,1764969043207,-1505.89170044,0.00014368,2]
[396435885,1764969043217,-1585.07991406,0.00014368,2]
[396435887,1764969043226,-1500.0,0.00014368,2]
[396435888,1764969043235,-1500.0,0.00014368,2]
[396435890,1764969043246,-1245.41460053,0.00014368,2]
[396435892,1764969043255,-1500.0,0.00014368,2]
[396435893,1764969043265,-1498.78170114,0.00014368,2]
[396435895,1764969043275,-1500.0,0.00014368,2]
[396435897,1764969043285,-1500.0,0.00014368,2]
[396435899,1764969043294,-1500.0,0.00014368,2]
[396435901,1764969043303,-1500.0,0.00014368,2]
[396435903,1764969043312,-1500.0,0.00014368,2]
[396435905,1764969043322,-1500.0,0.00014368,2]
[396435907,1764969043331,-203.10487376,0.00014368,2]
[396435909,1764969043340,-1500.0,0.00014368,2]
[396435911,1764969043350,-1500.0,0.00014368,2]
[396435913,1764969043359,-1131.32895387,0.00014368,2]
[396435915,1764969043368,-1500.0,0.00014368,2]
[396435917,1764969043378,-1634.85997799,0.00014368,2]
[396435919,1764969043387,-1318.3457776,0.00014368,2]
[396435921,1764969043397,-1500.0,0.00014368,2]
[396435923,1764969043406,-588.52934814,0.00014368,2]
[396435925,1764969043416,-1500.0,0.00014368,2]
[396435927,1764969043426,-1500.0,0.00014368,2]
[396435929,1764969043435,-224.23981727,0.00014368,2]
[396435931,1764969043444,-1500.0,0.00014368,2]
[396435933,1764969043453,-1500.0,0.00014368,2]
[396435935,1764969043463,-1500.0,0.00014368,2]
[396435937,1764969043472,-1500.0,0.00014368,2]
[396435938,1764969043481,-888.7729365,0.00014368,2]
[396435940,1764969043491,-546.0,0.00014369,2]
[396435942,1764969043500,-535.64593231,0.00014369,2]
[396435944,1764969043509,-500.0,0.00014369,2]
[396435946,1764969043518,-500.0,0.00014369,2]
[396435948,1764969043528,-48118.77620932,0.00014444,2]
[396435950,1764969043540,-151.0,0.000145,2]
[396435952,1764969043550,-546.0,0.00014506,2]
[396435954,1764969043559,-279.63983745,0.00014506,2]
[396435956,1764969043568,-497.85594007,0.00014506,2]
[396435958,1764969043578,-500.0,0.00014534,2]
[396435960,1764969043587,-942.43,0.00014558,2]
[396435962,1764969043596,-942.43,0.00014558,2]
[396435964,1764969043605,-942.43,0.00014558,2]
[396435966,1764969043616,-942.43,0.00014558,2]
[396435968,1764969043625,-942.43,0.00014558,2]
[396435970,1764969043634,-942.43,0.00014558,2]
[396435972,1764969043643,-942.43,0.00014558,2]
[396435974,1764969043652,-942.43,0.00014558,2]
[396435975,1764969043662,-133135.1075215,0.00014559,2]
[396435977,1764969043672,-172.6193608,0.00014559,2]
[396435979,1764969043682,-29250.18749,0.00014559,2]
[396435981,1764969043691,-2071.4323302,0.00014559,2]
[396435983,1764969043701,-6526.599019,0.00014559,2]
[396435985,1764969043710,-157.3128134,0.00014559,2]
[396435987,1764969043719,-151.0,0.000146,2]
[396435989,1764969043728,-875.92529489,0.00014608,2]
[396435991,1764969043738,-546.0,0.00014643,2]
[396435993,1764969043748,-4159.86150378,0.00014731,2]
[396436001,1764969043813,-546.0,0.0001478,2]
[396436003,1764969043822,-942.43,0.00014794,2]
[396436005,1764969043832,-592.41689518,0.00014795,2]
[396436007,1764969043841,-1500.0,0.00014795,2]
[396436009,1764969043851,-1003.14780656,0.00014795,2]
[396436011,1764969043860,-1135.94919276,0.00014795,2]
[396436013,1764969043869,-1500.0,0.00014795,2]
[396436015,1764969043877,-1522.80785739,0.00014795,2]
[396436017,1764969043886,-1210.38473537,0.00014795,2]
[396436018,1764969043896,-1500.0,0.00014795,2]
[396436020,1764969043905,-1501.54351372,0.00014795,2]
[396436022,1764969043915,-1500.0,0.00014795,2]
[396436024,1764969043923,-1500.0,0.00014795,2]
[396436026,1764969043932,-1500.0,0.00014795,2]
[396436028,1764969043941,-615.92060662,0.00014795,2]
[396436030,1764969043950,-1500.0,0.00014795,2]
[396436032,1764969043959,-602.63940368,0.00014795,2]
[396436034,1764969043968,-1500.0,0.00014795,2]
[396436036,1764969043977,-1628.64650043,0.00014795,2]
[396436038,1764969043986,-1500.0,0.00014795,2]
[396436039,1764969043995,-1500.0,0.00014795,2]
[396436041,1764969044005,-1500.0,0.00014795,2]
[396436043,1764969044014,-501.0466406,0.00014795,2]
[396436045,1764969044023,-1500.0,0.00014795,2]
[396436047,1764969044033,-1500.0,0.00014795,2]
[396436049,1764969044042,-594.83999829,0.00014795,2]
[396436051,1764969044051,-1112.22437229,0.00014795,2]
[396436053,1764969044060,-1500.64144955,0.00014795,2]
[396436055,1764969044068,-500.43748011,0.00014795,2]
[396436057,1764969044078,-502.12284759,0.00014795,2]
[396436059,1764969044087,-151.0,0.000148,2]
[396436061,1764969044096,-151.0,0.000148,2]
[396436063,1764969044105,-500.0,0.00014808,2]
[396436065,1764969044114,-204.0,0.00014843,2]
[396436067,1764969044123,-587.0,0.00014847,2]
[396436069,1764969044132,-942.43,0.00014916,2]
[396436071,1764969044141,-942.43,0.00014916,2]
[396436073,1764969044150,-942.43,0.00014916,2]
[396436075,1764969044159,-942.43,0.00014916,2]
[396436077,1764969044168,-942.43186829,0.00014916,2]
[396436079,1764969044177,-182.24866509,0.00014916,2]
[396436081,1764969044186,-1027.70416456,0.00014916,2]
[396436083,1764969044196,-2000.0,0.00014916,2]
[396436085,1764969044206,-1730.64684093,0.00014916,2]
[396436087,1764969044215,-1012.73080833,0.00014916,2]
[396436089,1764969044224,-1891.92887852,0.00014916,2]
[396436091,1764969044233,-2000.0,0.00014916,2]
[396436093,1764969044242,-519.73806679,0.00014916,2]
[396436095,1764969044251,-2000.0,0.00014916,2]
[396436097,1764969044261,-2000.0,0.00014916,2]
[396436098,1764969044270,-2000.0,0.00014916,2]
[396436100,1764969044279,-2000.0,0.00014916,2]
[396436102,1764969044288,-2000.0,0.00014916,2]
[396436104,1764969044297,-2000.0,0.00014916,2]
[396436106,1764969044307,-1500.0,0.00014916,2]
[396436108,1764969044317,-1313.09437533,0.00014916,2]
[396436110,1764969044326,-2000.0,0.00014916,2]
[396436112,1764969044335,-2000.0,0.00014916,2]
[396436114,1764969044345,-2000.0,0.00014916,2]
[396436116,1764969044354,-546.0,0.00014917,2]
[396436118,1764969044364,-2351.0,0.00014917,2]
[396436120,1764969044374,-151.0,0.00015,2]
[396436122,1764969044384,-546.0,0.00015054,2]
[396436124,1764969044393,-195.416,0.00015065,2]
[396436126,1764969044402,-518.5,0.00015068,2]
[396436128,1764969044411,-800.0,0.00015068,2]
[396436130,1764969044420,-500.0,0.00015082,2]
[396436132,1764969044428,-151.0,0.000151,2]
[396436134,1764969044438,-631.0,0.00015117,2]
[396436136,1764969044446,-1359.0,0.00015117,2]
[396436138,1764969044455,-2155.0,0.00015117,2]
[396436140,1764969044464,-415.0,0.00015117,2]
[396436141,1764969044473,-537.6845,0.00015123,2]
[396436143,1764969044482,-557.5788265,0.00015178,2]
[396436145,1764969044491,-546.0,0.00015191,2]
[396436147,1764969044500,-151.0,0.000152,2]
[396436149,1764969044509,-463.17867466,0.00015233,2]
[396436151,1764969044518,-317.05834721,0.00015248,2]
[396436153,1764969044528,-876.80122019,0.00015263,2]
[396436156,1764969044541,-151.0,0.000153,2]
[396436157,1764969044552,-546.0,0.00015328,2]
[396436159,1764969044561,-233.47628456,0.00015333,2]
[396436161,1764969044570,-2000.0,0.00015342,2]
[396436163,1764969044580,-2000.0,0.00015342,2]
[396436165,1764969044589,-510.30491221,0.00015342,2]
[396436167,1764969044598,-2102.83105729,0.00015342,2]
[396436169,1764969044611,-1178.41272614,0.00015342,2]
[396436171,1764969044620,-2000.0,0.00015342,2]
[396436173,1764969044629,-2000.0,0.00015342,2]
[396436175,1764969044638,-2000.0,0.00015342,2]
[396436177,1764969044649,-436.5850808,0.00015342,2]
[396436179,1764969044658,-2000.0,0.00015342,2]
[396436181,1764969044668,-1501.33146258,0.00015342,2]
[396436183,1764969044677,-2000.0,0.00015342,2]
[396436185,1764969044686,-1000.0,0.00015342,2]
[396436187,1764969044696,-500.0,0.00015356,2]
[396436189,1764969044705,-151.0,0.000154,2]
[396436191,1764969044714,-2500.0,0.00015464,2]
[396436193,1764969044723,-2500.0,0.00015464,2]
[396436195,1764969044732,-2500.0,0.00015464,2]
[396436197,1764969044741,-2500.0,0.00015464,2]
[396436199,1764969044752,-2500.0,0.00015464,2]
[396436201,1764969044761,-2500.0,0.00015464,2]
[396436203,1764969044770,-2500.0,0.00015464,2]
[396436204,1764969044780,-2500.0,0.00015464,2]
[396436206,1764969044790,-538.99470912,0.00015464,2]
[396436208,1764969044799,-2500.0,0.00015464,2]
[396436210,1764969044807,-2500.0,0.00015464,2]
[396436212,1764969044816,-546.0,0.00015465,2]
[396436214,1764969044825,-864.0,0.00015518,2]
[396436216,1764969044834,-289.47362938,0.00015518,2]
[396436218,1764969044844,-151.0,0.000156,2]
[396436219,1764969044853,-151.0,0.000156,2]
[396436220,1764969044863,-546.0,0.00015602,2]
[396436221,1764969044871,-500.0,0.0001563,2]
[396436222,1764969044880,-4159.86150378,0.00015676,2]
[396436223,1764969044889,-546.0,0.00015739,2]
[396436224,1764969044898,-546.0,0.00015876,2]
[396436225,1764969044907,-1149.53357804,0.0001589,2]
[396436226,1764969044916,-1541.319227,0.0001589,2]
[396436227,1764969044925,-2500.0,0.0001589,2]
[396436228,1764969044934,-2500.0,0.0001589,2]
[396436229,1764969044943,-2500.0,0.0001589,2]
[396436230,1764969044952,-2500.0,0.0001589,2]
[396436232,1764969044961,-2500.0,0.0001589,2]
[396436235,1764969044972,-151.0,0.000159,2]
[396436237,1764969044981,-151.0,0.000159,2]
[396436238,1764969044990,-500.0,0.00015904,2]
[396436240,1764969044999,-399.1865873,0.00015983,2]
[396436242,1764969045009,-3000.0,0.00016012,2]
[396436244,1764969045018,-3000.0,0.00016012,2]
[396436246,1764969045027,-3000.0,0.00016012,2]
[396436248,1764969045036,-3000.0,0.00016012,2]
[396436250,1764969045046,-3000.0,0.00016012,2]
[396436252,1764969045054,-3000.0,0.00016012,2]
[396436254,1764969045063,-3000.0,0.00016012,2]
[396436256,1764969045073,-1813.65509127,0.00016012,2]
[396436258,1764969045082,-3000.0,0.00016012,2]
[396436260,1764969045090,-537.33624214,0.00016012,2]
[396436262,1764969045099,-546.0,0.00016013,2]
[396436264,1764969045109,-157.25,0.00016089,2]
[396436266,1764969045118,-151.0,0.000161,2]
[396436268,1764969045127,-250.0,0.00016136,2]
[396436271,1764969045136,-151.0,0.00016137,2]
[396436272,1764969045145,-151.0,0.00016137,2]
[396436274,1764969045155,-151.0,0.00016137,2]
[396436276,1764969045164,-500.0,0.00016137,2]
[396436278,1764969045173,-151.0,0.00016137,2]
[396436280,1764969045182,-500.0,0.00016137,2]
[396436282,1764969045192,-500.0,0.00016137,2]
[396436284,1764969045201,-151.0,0.00016137,2]
[396436286,1764969045211,-500.0,0.00016137,2]
[396436288,1764969045219,-151.0,0.00016137,2]
[396436290,1764969045228,-151.0,0.00016137,2]
[396436292,1764969045237,-151.0,0.00016137,2]
[396436294,1764969045246,-5059.2889833,0.00016137,2]
[396436296,1764969045254,-546.0,0.0001615,2]
[396436298,1764969045263,-1600.0,0.00016164,2]
[396436300,1764969045272,-500.0,0.00016178,2]
[396436302,1764969045281,-151.0,0.000162,2]
[396436304,1764969045291,-157.3128134,0.00016212,2]
[396436306,1764969045299,-1001.11,0.00016228,2]
[396436308,1764969045309,-172.6193608,0.00016231,2]
[396436310,1764969045318,-539.42225384,0.00016231,2]
[396436312,1764969045327,-591.78,0.00016231,2]
[396436314,1764969045336,-500.0,0.00016231,2]
[396436316,1764969045345,-1001.11,0.00016237,2]
[396436318,1764969045354,-1000.0,0.00016237,2]
[396436320,1764969045364,-1000.0,0.00016237,2]
[396436322,1764969045374,-1000.0,0.00016237,2]
[396436324,1764969045383,-1000.0,0.00016237,2]
[396436326,1764969045391,-1000.0,0.00016237,2]
[396436328,1764969045401,-634.11913515,0.00016237,2]
[396436330,1764969045410,-591.78,0.00016237,2]
[396436332,1764969045419,-591.78,0.00016237,2]
[396436334,1764969045428,-591.78,0.00016237,2]
[396436336,1764969045437,-591.78,0.00016237,2]
[396436338,1764969045446,-591.78,0.00016237,2]